[Event "14th Karen Asrian Memorial 2024"]
[Site "Yerevan"]
[Date "2024.04.29"]
[Round "6.7"]
[White "Sukiasyan, Vahe A."]
[Black "Nigalidze, Gaioz"]
[Result "1-0"]
[ECO "A43"]
[WhiteElo "2258"]
[BlackElo "2373"]
[Annotator "TA"]
[PlyCount "73"]
[EventDate "2024.04.24"]
[EventType "swiss"]
[EventCountry "ARM"]
[SourceTitle "playchess.com"]
[Source "ChessBase"]
[SourceQuality "1"]
[TimeControl "40/5400+30:1800+30"]

{[%evp 16,73,20,23,29,31,27,19,45,0,38,34,36,34,41,20,18,16,58,68,76,23,38,40,40,37,54,64,62,59,66,59,370,0,83,102,262,251,247,256,256,251,326,302,314,324,307,241,250,250,371,317,520,523,620,617,1028,1028,1015,987]} 1. d4 {[%emt 0:00:09]} c5 {[%emt 0:00:35]} 2. d5 {[%emt 0:00:14]} g6 {[%emt 0:00:09]} 3. e4 {[%emt 0:02:01]} d6 {[%emt 0:00:19]} 4. Nc3 {[%emt 0:01:41]} Bg7 {[%emt 0:00:07]} 5. Nf3 {[%emt 0:02:44]} Nf6 {[%emt 0:02:22]} 6. Bb5+ {[%emt 0:00:06]} Bd7 {[%emt 0:01:46]} 7. a4 {[%emt 0:00:15]} O-O {[%emt 0:00:57]} 8. h3 {[%emt 0:05:27]} Na6 {[%emt 0:00:59]} 9. O-O {[%emt 0:01:33]} Nc7 {[%emt 0:00:58]} 10. Bc4 {[%emt 0:06:33]} a6 {[%emt 0:02:12]} 11. e5 {[%emt 0:16:08]} Nfe8 {[%emt 0:05:47] The position is equal.} 12. Qe2 {[%emt 0:11:28]} dxe5 {[%emt 0:02:35]} 13. Nxe5 {[%emt 0:00:28]} Nd6 {[%emt 0:00:19]} 14. Bf4 {[%emt 0:02:56]} Be8 {[%emt 0:05:41]} 15. Ba2 {[%emt 0:05:13]} b5 {[%emt 0:07:25]} 16. Rad1 {[%emt 0:03:28]} b4 {[%emt 0:25:43]} 17. Ne4 {[%emt 0:02:21]} Bxa4 {[%emt 0:00:09] Threatens to win with ...Bxe5.} (17... Nxe4 $2 18. Qxe4 Bxa4 19. Nc6 $18) 18. Nc6 {[%emt 0:09:06]} (18. Nxc5 $16 Bb5 19. Ncd3) 18... Bxc6 $11 {[%emt 0:00:33]} 19. dxc6 {[%emt 0:01:59]} Ncb5 {[%emt 0:00:28]} 20. Nxc5 {[%emt 0:06:14]} Qa5 {[%emt 0:20:40]} 21. Bb3 {[%emt 0:07:26] This pair of bishops is nice.} Nd4 $1 {[%emt 0:01:10] [#]} 22. Rxd4 {[%emt 0:00:04]} Bxd4 {[%emt 0:00:33]} 23. Nd7 {[%emt 0:00:03]} (23. Qxe7 Nc8 (23... Nf5 24. Nb7 $15) 24. Bxf7+ (24. Qb7 $2 Bxc5 25. Qxa8 Nd6 $19) 24... Rxf7 $11) 23... Rfe8 {[%emt 0:04:24][%mdl 8192]} (23... Qf5 $1 $14 24. Bxd6 exd6) 24. Rd1 $2 {[%emt 0:07:47]} ({White has to play} 24. Bxd6 $1 $18 exd6 25. Qc4 (25. Bxf7+ Kxf7 26. Qc4+ Re6 $14)) 24... Bg7 {[%emt 0:02:11]} (24... Bxb2 $11 25. Qf3 Kh8) 25. Qf3 $36 {[%emt 0:00:03][%mdl 2048] White is really pushing. White has more active pieces.} Qf5 $2 {[%emt 0:01:47] [#]} (25... Kh8 $16) 26. g4 $1 $18 {[%emt 0:00:53]} Qe4 {[%emt 0:02:15]} 27. Qxe4 {[%emt 0:00:03]} Nxe4 {[%emt 0:00:04]} 28. Nb6 {[%emt 0:00:04] Against Rac8} Rac8 {[%emt 0:01:23]} 29. Nxc8 {[%emt 0:01:39]} Rxc8 {[%emt 0:00:02] [#]} 30. Rd7 $1 {[%emt 0:00:46] And now c7 would win.} Nc5 {[%emt 0:04:18]} 31. Rxe7 {[%emt 0:01:26]} Nxb3 {[%emt 0:00:24]} 32. cxb3 {[%emt 0:00:06] Hoping for Rb7. KRB-KRB} g5 {[%emt 0:06:10]} (32... Bf6 $142 33. Rc7 Rxc7 34. Bxc7 Kf8 35. Bd6+ Ke8) 33. Rc7 {[%emt 0:02:26]} (33. Bxg5 h6 34. Bf4 Rxc6 $16) ({Don't do} 33. Bd6 Bf6) 33... Re8 {[%emt 0:00:51]} (33... Rxc7 {was necessary.} 34. Bxc7 Kf8) 34. Bxg5 {[%emt 0:00:27] White is clearly winning.} Bxb2 {[%emt 0:00:41]} 35. Rd7 {[%emt 0:01:09]} Kg7 {[%emt 0:00:24]} 36. c7 {[%emt 0:00:41] Rd8 is the strong threat.} Rc8 {[%emt 0:01:00]} 37. Bf4 {[%emt 0:00:04] Weighted Error Value: White=0.21 (precise) /Black=0.64.  Loses game:     	---       	Black=1      Missed win:     	White=1     	---        Mistake:       	White=1     	Black=4      Inaccurate:     	White=1     	Black=4      OK:         	White=10    	Black=6      Best:        	White=2     	Black=1      Strong:       	White=2     	Black=1      Brilliant:      	White=1     	---} 1-0

[Event "14th Karen Asrian Memorial 2024"]
[Site "Yerevan"]
[Date "2024.04.29"]
[Round "6.8"]
[White "Nalbandyan, Vahan"]
[Black "Sahakyan, Aleks"]
[Result "1-0"]
[ECO "C64"]
[WhiteElo "2110"]
[BlackElo "2339"]
[Annotator "TA"]
[PlyCount "91"]
[EventDate "2024.04.24"]
[EventType "swiss"]
[EventCountry "ARM"]
[SourceTitle "playchess.com"]
[Source "ChessBase"]
[SourceQuality "1"]
[TimeControl "40/5400+30:1800+30"]

{[%evp 10,91,93,39,34,34,36,44,37,32,36,44,41,40,29,14,18,20,18,0,-23,-34,26,33,33,29,58,56,123,115,136,135,144,141,156,164,252,201,218,197,199,191,189,174,190,169,177,145,185,186,184,189,200,187,241,248,460,258,258,249,248,239,473,476,526,521,749,697,747,734,725,676,1100,1042,1370,693,1023,1450,1226,1077,29965,29969,29984,29974]} 1. e4 {[%emt 0:14:13]} e5 {[%emt 0:00:06]} 2. Nf3 {[%emt 0:00:43]} Nc6 {[%emt 0:00:06]} 3. Bb5 {[%emt 0:01:03]} a6 {[%emt 0:00:09]} 4. Ba4 {[%emt 0:00:12]} Bc5 {[%emt 0:01:59]} 5. O-O {[%emt 0:08:09]} Nge7 {[%emt 0:00:06] [#]} 6. c3 {[%emt 0:01:06]} (6. Nxe5 $1 $16 Nxe5 7. d4) 6... Ba7 $14 {[%emt 0:00:42]} 7. d4 {[%emt 0:09:43]} Ng6 {[%emt 0:00:05]} 8. Bg5 {[%emt 0:00:24]} f6 {[%emt 0:00:12] White is slightly better.} 9. Be3 {[%emt 0:00:09]} O-O {[%emt 0:00:07]} 10. Re1 {[%emt 0:02:06]} d6 {[%emt 0:00:16]} 11. Nbd2 {[%emt 0:02:15]} Kh8 {[%emt 0:00:07]} 12. h3 {[%emt 0:04:25]} exd4 {[%emt 0:06:04]} 13. Nxd4 {[%emt 0:13:22]} Nxd4 {[%emt 0:01:59]} 14. Bxd4 {[%emt 0:00:46]} Bxd4 {[%emt 0:01:44]} (14... c5 $5 15. Be3 $8 f5 16. exf5 Bxf5 $11) 15. cxd4 {[%emt 0:00:08]} d5 {[%emt 0:00:40]} (15... f5 $15) 16. exd5 $11 {[%emt 0:00:53]} Qxd5 {[%emt 0:03:48]} 17. Ne4 {[%emt 0:01:13][%cal Bd2e4,Be4c5,Bc5e6][%mdl 32]} Bf5 {[%emt 0:26:01]} 18. Bb3 $36 {[%emt 0:04:00][%mdl 2048] White fights for an advantage.} Qd7 {[%emt 0:11:59] Black is on the road to losing.} (18... Qd8 $14) 19. Nc5 $16 {[%emt 0:04:52][%csl LRb7,LRd7]} Qc6 {[%emt 0:01:37]} 20. Rc1 {[%emt 0:03:07]} Rfe8 {[%emt 0:09:56] Inhibits Be6.} 21. d5 {[%emt 0:07:15]} Rxe1+ {[%emt 0:02:00]} 22. Qxe1 {[%emt 0:00:05]} Qb5 {[%emt 0:00:04]} (22... Qb6 {is a better defense.} 23. Qc3 Ne5) 23. Ne6 {[%emt 0:03:46]} Re8 {[%emt 0:06:15]} 24. Qd2 {[%emt 0:01:50] Wards off Nf4} Qb6 {[%emt 0:10:19]} 25. Nxc7 {[%emt 0:02:45]} Rd8 {[%emt 0:00:08]} 26. Qe3 {[%emt 0:01:09]} Qxe3 {[%emt 0:06:34]} 27. fxe3 {[%emt 0:00:05] And now Ne6 would win.} Rc8 {[%emt 0:01:13]} 28. Rc3 {[%emt 0:00:31]} h5 {[%emt 0:00:23]} 29. a4 {[%emt 0:01:02][%cal Ba2a4,Ba4a5][%mdl 32]} Ne5 {[%emt 0:01:29]} 30. a5 {[%emt 0:05:21]} Nf7 {[%emt 0:00:08]} 31. Ne6 {[%emt 0:01:05]} Rxc3 (31... Nd6 {was worth a try.} 32. Rxc8+ Nxc8) 32. bxc3 $18 {[%emt 0:00:05][%cal Bb2c3,Bc3c4,Bc4c5][%mdl 4128] Endgame. Black must now prevent c4. KBN-KBN} Nd6 {[%emt 0:00:56]} (32... Kg8 33. Nd4 Bd7) 33. Nc5 {[%emt 0:00:25]} (33. c4 $142 {Strongly threatening c5.} Nf7 34. c5) 33... Kg8 {[%emt 0:01:10]} 34. Kf2 {[%emt 0:01:12]} Be4 {[%emt 0:01:23]} 35. c4 {[%emt 0:04:08]} Kf8 $2 {[%emt 0:00:29]} (35... Kf7 36. Ne6 Bd3) 36. Ne6+ {[%emt 0:00:36]} Ke7 {[%emt 0:00:46]} 37. c5 {[%emt 0:01:12]} Nf5 {[%emt 0:01:01]} 38. g4 {[%emt 0:00:28]} hxg4 {[%emt 0:00:16]} 39. hxg4 {[%emt 0:00:04]} Nh6 {[%emt 0:00:46]} 40. Kg3 {[%emt 0:00:00]} g6 {[%emt 0:00:00][%cal Bg7g6,Bg6g5][%mdl 32]} 41. Kf4 {[%emt 0:06:28]} Bd3 {[%emt 0:04:38]} 42. d6+ {[%emt 0:02:03]} Kd7 {[%emt 0:00:46]} 43. Nd4 {[%emt 0:00:14] [#] White wants to mate with Be6+.} g5+ {[%emt 0:00:43]} 44. Kf3 {[%emt 0:00:06] White threatens Be6+ and mate.} f5 {[%emt 0:00:54]} 45. Be6+ {[%emt 0:00:27]} Kd8 {[%emt 0:00:15]} 46. Nxf5 {[%emt 0:00:20] Weighted Error Value: White=0.13 (very precise) /Black=0.50.  Mistake:       	White=1     	Black=6      Inaccurate:     	White=1     	Black=2      OK:         	White=16    	Black=10     Best:        	White=3     	Black=2} 1-0

[Event "14th Karen Asrian Memorial 2024"]
[Site "Yerevan"]
[Date "2024.04.30"]
[Round "7.1"]
[White "Petrosyan, Manuel"]
[Black "Babujian, Levon"]
[Result "1-0"]
[ECO "B48"]
[WhiteElo "2616"]
[BlackElo "2338"]
[Annotator "TA"]
[PlyCount "56"]
[EventDate "2024.04.24"]
[EventType "swiss"]
[EventCountry "ARM"]
[SourceTitle "playchess.com"]
[Source "ChessBase"]
[SourceQuality "1"]
[TimeControl "40/5400+30:1800+30"]

{[%evp 11,56,22,25,8,24,28,65,75,77,53,51,54,38,48,48,36,160,168,314,308,324,313,312,287,400,397,484,483,789,782,1196,1187,1266,1261,1249,1216,1243,1080,1103,847,870,841,1661,1670,29989,29985,29990]} 1. e4 {[%emt 0:03:46]} c5 {[%emt 0:00:07]} 2. Nf3 {[%emt 0:00:06]} e6 {[%emt 0:00:05]} 3. d4 {[%emt 0:01:01]} cxd4 {[%emt 0:00:06]} 4. Nxd4 {[%emt 0:00:03]} Nc6 {[%emt 0:00:06][%cal Bb8c6,Bc6e5,Be5g4][%mdl 32]} 5. Nc3 {[%emt 0:00:05]} Qc7 {[%emt 0:00:04]} 6. Be3 {[%emt 0:00:51][%cal Bc1e3,Be3g1,Bg1d4][%mdl 32]} a6 {[%emt 0:00:06]} 7. Qf3 {[%emt 0:00:36]} Ne5 {[%emt 0:00:28]} 8. Qg3 {[%emt 0:01:03]} Nf6 {[%emt 0:00:43][%cal Of8a3]} 9. f4 {[%emt 0:09:06] White is slightly better.} Neg4 {[%emt 1:33:15]} 10. Bg1 {[%emt 0:03:57]} Bb4 {[%emt 0:00:00]} 11. O-O-O {[%emt 0:03:15] [#] Hoping for e5.} Bxc3 {[%emt 0:00:00]} 12. bxc3 {[%emt 0:00:06] aiming for e5.} h5 $1 {[%emt 0:00:00]} 13. Bd3 {[%emt 0:02:43] e5 is the strong threat.} Qxc3 {[%emt 0:00:00] [#] Black is on the road to losing.} (13... h4 $14 14. Qf3 e5) 14. Nb3 $1 $16 {[%emt 0:05:03][%cal Bd4b3,Bb3d2,Bd2c4][%mdl 32]} a5 {[%emt 0:00:00]} (14... b6 {is a better defense.}) 15. Bd4 $18 {[%emt 0:07:10]} Qb4 {[%emt 0:00:00]} 16. c3 {[%emt 0:08:36]} Qa3+ {[%emt 0:00:00]} 17. Kb1 {[%emt 0:00:11] And now h3 would win.} b6 {[%emt 0:00:00]} 18. h3 {[%emt 0:04:54][%cal Bh2h3,Bh3g4][%mdl 32]} (18. Bxb6 Rb8 19. Ba7 (19. Bd4 $2 a4 $19) 19... Rb7 $17) 18... a4 {[%emt 0:00:00]} 19. Nd2 {[%emt 0:03:33]} Bb7 {[%emt 0:00:00]} (19... h4 $142) 20. hxg4 {[%emt 0:02:01]} Ra5 {[%emt 0:00:00]} 21. Nc4 {[%emt 0:04:27]} Nxe4 {[%emt 0:00:00]} 22. Bxe4 {[%emt 0:01:01]} Bxe4+ {[%emt 0:00:00]} 23. Ka1 {[%emt 0:00:03]} Qe7 {[%emt 0:00:00]} 24. Nxa5 {[%emt 0:00:10]} bxa5 {[%emt 0:00:00]} 25. Rxh5 {[%emt 0:01:22]} Rxh5 {[%emt 0:00:00]} 26. gxh5 {[%emt 0:00:04]} Qa3 {[%emt 0:00:00]} 27. Qxg7 {[%emt 0:01:14] White threatens h6 and mate.} Kd8 {[%emt 0:00:00]} 28. Qg5+ {[%emt 0:00:34]} f6 {[%emt 0:00:00] Weighted Error Value: White=0.06 (flawless) /Black=0.83.  Mistake:       	---       	Black=3      Inaccurate:     	---       	Black=3      OK:         	White=5     	Black=2      Best:        	White=3     	Black=1      Strong:       	White=1     	Black=1} 1-0

[Event "14th Karen Asrian Memorial 2024"]
[Site "Yerevan"]
[Date "2024.04.30"]
[Round "7.2"]
[White "Hayrapetyan, Hovik"]
[Black "Pranesh M"]
[Result "1/2-1/2"]
[ECO "D47"]
[WhiteElo "2432"]
[BlackElo "2538"]
[Annotator "TA"]
[PlyCount "79"]
[EventDate "2024.04.24"]
[EventType "swiss"]
[EventCountry "ARM"]
[SourceTitle "playchess.com"]
[Source "ChessBase"]
[SourceQuality "1"]
[TimeControl "40/5400+30:1800+30"]

{[%evp 22,79,0,0,0,-6,0,-54,0,0,0,0,0,0,0,0,0,0,0,0,0,0,0,0,0,-85,-87,-84,-87,-93,-10,-45,0,0,0,0,83,91,90,83,74,42,56,0,0,0,0,0,0,0,0,0,0,0,0,0,0,0,0,0]} 1. d4 {[%emt 0:00:12]} d5 {[%emt 0:00:03]} 2. c4 {[%emt 0:00:08]} e6 {[%emt 0:00:07]} 3. Nc3 {[%emt 0:00:28]} Nf6 {[%emt 0:00:07]} 4. Nf3 {[%emt 0:00:06]} c6 {[%emt 0:00:08]} 5. e3 {[%emt 0:00:06][%cal Be2e3,Be3e4,Be4e5][%mdl 32]} Nbd7 {[%emt 0:00:10]} 6. Bd3 {[%emt 0:00:14]} dxc4 {[%emt 0:00:13]} 7. Bxc4 {[%emt 0:00:05]} b5 {[%emt 0:00:03]} 8. Bd3 {[%emt 0:00:36]} Bb7 {[%emt 0:00:17]} 9. e4 {[%emt 0:01:17]} b4 {[%emt 0:00:19]} 10. Na4 {[%emt 0:00:06]} c5 {[%emt 0:00:05]} 11. e5 {[%emt 0:00:04]} Nd5 {[%emt 0:00:04]} 12. O-O {[%emt 0:00:06]} Rc8 {[%emt 0:00:14]} 13. Qe2 {[%emt 0:01:46]} Be7 {[%emt 0:04:03]} 14. Bd2 {[%emt 0:01:22]} ({Better is} 14. Nxc5 $11 Nxc5 15. dxc5) 14... O-O {[%emt 0:16:42]} ({Black should try} 14... cxd4 $15 15. Nxd4 O-O) 15. Nxc5 $11 {[%emt 0:26:55]} Bxc5 {[%emt 0:14:30]} 16. dxc5 {[%emt 0:00:14]} (16. Ng5 $5 h6 (16... Bxd4 $2 17. Bxh7+ Kh8 18. Qh5 $18) 17. Qe4 $17) 16... Nxc5 {[%emt 0:02:01] Excellent horsemanship.} 17. Bxh7+ {[%emt 0:42:44]} Kxh7 {[%emt 0:00:27]} 18. Ng5+ {[%emt 0:00:04]} Kg6 $1 {[%emt 0:01:05][%cal Bh7g6,Bg6f7,Bf7g8][%mdl 32]} (18... Kg8 $2 19. Qh5 Nf6 20. exf6 $18) 19. h4 {[%emt 0:01:44]} (19. Qg4 $5 f5 $8 20. Qg3 $11 (20. exf6 Nxf6 21. Qg3 Qd5 $15)) 19... Rh8 {[%emt 0:02:03]} 20. Qg4 {[%emt 0:00:05][%csl LRb4,LRe6]} f5 {[%emt 0:00:46]} 21. Qg3 {[%emt 0:00:01] The board is on fire.} f4 {[%emt 0:19:48]} 22. Bxf4 {[%emt 0:00:06]} Nxf4 {[%emt 0:00:06]} 23. Nh3+ {[%emt 0:06:08]} (23. Nxe6+ $11 Kf5 24. Nxd8 (24. Nxf4 Qxh4 25. Qg6+ Kxe5 $11) 24... Ne2+ 25. Kh2 Nxg3 26. fxg3+ Kg6 (26... Kxe5 $2 27. Nf7+ Ke6 28. Nxh8 $18) 27. Nf7) 23... Kf7 $17 {[%emt 0:02:51]} 24. Qxf4+ {[%emt 0:00:15] [#]} Kg8 $1 {[%emt 0:00:28]} 25. Ng5 {[%emt 0:00:15] [#]} Qe8 {[%emt 0:03:44] Against Qf7+} (25... Qf8 $1 $17 {[%cal Rf8f4]} 26. Qxb4 a5) 26. Rac1 {[%emt 0:02:12][%cal Of1d1]} (26. Rfd1 $5) 26... Qh5 {[%emt 0:10:30] White must now prevent ...Rf8.} (26... a5 {simplifies} 27. Qd4 Nd7 28. Rxc8 Qxc8 29. Nxe6 Nf8) 27. f3 {[%emt 0:07:04]} Rf8 $1 {[%emt 0:09:54]} (27... Qxh4 28. Qf7#) 28. Qd4 {[%emt 0:00:04]} (28. Qxb4 Nd3 29. Qe7 (29. Qxb7 Qxh4 30. Nh3 Nxc1 $17) 29... Bd5 $17) 28... Qxh4 {[%emt 0:00:25]} (28... Nd3 $11 {remains equal.} 29. Qxd3 Qxh4) 29. Qxh4 $16 {[%emt 0:00:07]} (29. Qxc5 $2 Qxg5 30. Rcd1 Bxf3 31. Rxf3 Rxf3 $19) 29... Rxh4 {[%emt 0:00:01]} 30. Rxc5 {[%emt 0:00:06]} Bd5 {[%emt 0:00:02]} 31. g4 {[%emt 0:03:00] Prevents Rh5.} Rh6 $1 {[%emt 0:04:09][%cal Oh6g6]} 32. Rc2 {[%emt 0:00:56]} (32. a3 $14) 32... Rg6 $11 {[%emt 0:00:54] The position is equal.} 33. f4 {[%emt 0:00:14]} Rh6 {[%emt 0:00:01]} 34. Rh2 {[%emt 0:00:18]} Rc8 {[%emt 0:00:05]} 35. f5 {[%emt 0:00:54] Strongly threatening f6.} Rc4 {[%emt 0:01:16]} 36. Rxh6 {[%emt 0:00:43]} Rxg4+ {[%emt 0:00:04]} (36... gxh6 37. Nxe6 Rxg4+ 38. Kh2 Rh4+ 39. Kg3) 37. Kh2 {[%emt 0:00:06][%cal Of5f6] f6! is the strong threat.} Rg2+ {[%emt 0:01:15]} 38. Kh3 {[%emt 0:00:01][%cal Of5f6] f6! would kill now.} Rxg5 {[%emt 0:00:02]} 39. Rxe6 {[%emt 0:01:16]} ({Don't blunder} 39. Rg6 $2 Bg2+ (39... Rxf5 $2 {perishes.} 40. Rxf5 exf5 41. Ra6 $18) 40. Kh4 Rxg6 $19 (40... Rxf5 41. Rxf5 exf5 42. Rxg2 $18)) 39... Bxe6 {[%emt 0:00:06]} 40. fxe6 {[%emt 0:00:00] Weighted Error Value: White=0.14 (very precise) /Black=0.13 (very precise) .  Mistake:       	White=3     	Black=3      Inaccurate:     	White=2     	Black=1      OK:         	White=12    	Black=9      Best:        	White=5     	Black=2      Strong:       	---       	Black=4} 1/2-1/2

[Event "14th Karen Asrian Memorial 2024"]
[Site "Yerevan"]
[Date "2024.04.30"]
[Round "7.3"]
[White "Danielyan, Vahe"]
[Black "Ohanyan, Emin"]
[Result "0-1"]
[ECO "D02"]
[WhiteElo "2331"]
[BlackElo "2488"]
[Annotator "TA"]
[PlyCount "84"]
[EventDate "2024.04.24"]
[EventType "swiss"]
[EventCountry "ARM"]
[SourceTitle "playchess.com"]
[Source "ChessBase"]
[SourceQuality "1"]
[TimeControl "40/5400+30:1800+30"]

{[%evp 34,84,-99,-228,-226,-245,-231,-233,-223,-218,-220,-223,-220,-239,-222,-227,-210,-226,-208,-241,-241,-385,-370,-369,-360,-377,-347,-395,-407,-379,-358,-462,-500,-29977,-29977,-1860,-494,-486,-473,-473,-512,-509,-511,-510,-511,-538,-573,-577,-583,-1427,-555,-1047,-1020]} 1. d4 {[%emt 0:00:03]} d5 {[%emt 0:08:44]} 2. Nf3 {[%emt 0:00:06]} e6 {[%emt 0:00:09]} 3. Bf4 {[%emt 0:01:38]} c5 {[%emt 0:00:23]} 4. e3 {[%emt 0:00:35]} Qb6 {[%emt 0:00:35]} 5. Nc3 {[%emt 0:05:42]} Bd7 {[%emt 0:00:54]} 6. Rb1 {[%emt 0:01:52] D02: 1 d4 d5 2 Nf3 sidelines, including 2...Nf6 3 g3 and 2...Nf6 3 Bf4.} Nf6 {[%emt 0:02:21]} 7. Be2 {[%emt 0:00:05]} Bd6 {[%emt 0:14:08]} 8. Ne5 {[%emt 0:01:46]} cxd4 {[%emt 0:06:53]} 9. exd4 {[%emt 0:00:41]} Nc6 {[%emt 0:03:52]} 10. Nxd7 {[%emt 0:01:54]} Kxd7 {[%emt 0:00:10]} 11. Be3 {[%emt 0:01:50]} a6 {[%emt 0:03:40]} 12. O-O {[%emt 0:00:18]} Qc7 {[%emt 0:00:37]} 13. h4 $146 {[%emt 0:04:53]} ({Predecessor:} 13. Kh1 b5 14. Bd3 h5 15. f4 Ng4 16. Qf3 g6 17. a4 b4 18. Ne2 f5 19. Rbd1 {1-0 Vorobjov,P (2233)-Medar,M (2024) EST-ch U20 Tallinn 2018 (4)}) 13... Ne7 {[%emt 0:09:13]} 14. Qd3 {[%emt 0:05:27]} h6 {[%emt 0:08:05]} 15. Bf3 {[%emt 0:06:51]} g5 {[%emt 0:03:37]} 16. h5 {[%emt 0:01:26]} g4 {[%emt 0:00:08]} 17. Be2 {[%emt 0:00:16]} Nf5 {[%emt 0:01:13]} (17... Nxh5 18. Bxg4 Nf6 19. Bh3 $15) 18. Rfe1 {[%emt 0:03:27]} (18. Bd2 $17 {is a better defense.}) 18... Rag8 {[%emt 0:02:43]} (18... Nxh5 $2 19. Bxg4 Nxe3 20. Bxh5 Nxg2 21. Kxg2 $18) 19. b4 {[%emt 0:02:49]} Bh2+ {[%emt 0:09:15]} (19... Nxh5 20. Nxd5 Bh2+ 21. Kh1 Nfg3+ 22. fxg3) 20. Kf1 {[%emt 0:00:42]} Bf4 {[%emt 0:00:24]} 21. Bxf4 {[%emt 0:05:45]} Qxf4 {[%emt 0:00:03]} 22. g3 {[%emt 0:00:29]} Qxd4 {[%emt 0:01:32]} 23. b5 {[%emt 0:00:03]} a5 {[%emt 0:00:39]} (23... Nxh5 24. bxa6 bxa6 25. Rb7+ Ke8 26. Qxa6 $18) 24. b6 {[%emt 0:00:04]} Rc8 {[%emt 0:04:44]} 25. Nb5 {[%emt 0:00:07]} Qc5 {[%emt 0:01:08]} (25... Qxb6 26. Na3 Qc6 27. Kg1 $15) 26. Nc7 {[%emt 0:01:38]} Nd6 {[%emt 0:02:48]} (26... Nxh5 $2 27. Rb5 (27. Bxg4 Nhg7 $18) 27... Rxc7 28. bxc7 $18 (28. Rxc5 Rxc5 29. Bxg4 Nhg7 $18)) 27. Kg2 {[%emt 0:02:35]} (27. Red1 {was the only defense.}) 27... Nfe4 $19 {[%emt 0:00:20]} (27... Nxh5 28. Bxg4 Ng7 (28... Nf6 29. Nxe6 fxe6 30. Bxe6+ Kd8 31. Bxc8 $11) 29. Re5 $11 (29. Nxd5 f5 $11)) 28. Rf1 {[%emt 0:00:35]} f5 {[%emt 0:00:20]} 29. a4 {[%emt 0:04:52]} Rcf8 {[%emt 0:06:12]} 30. Nb5 {[%emt 0:00:56]} Rhg8 {[%emt 0:04:32]} (30... Qxb6 $2 31. Nxd6 Qxd6 32. Rxb7+ Kc8 33. Rb5 $18) 31. Nxd6 {[%emt 0:00:18]} Kxd6 {[%emt 0:01:07]} (31... Nxd6 32. c3 $19) 32. c4 {[%emt 0:02:29]} f4 {[%emt 0:01:03]} (32... d4 33. Rb5 Qc6 34. Qxd4+ Ke7 35. Kg1 $16) 33. gxf4 {[%emt 0:03:10]} (33. cxd5 $19 f3+ (33... exd5 34. Bxg4 Rxg4 35. Rb5 $19) (33... Qxd5 34. Qa3+ Qc5 35. Qd3+ Qd5 36. Qa3+ Qc5 37. Qd3+ Qd5 $11) 34. Kg1 exd5 (34... fxe2 $2 35. dxe6+ Ke7 36. Qxe4 $19) 35. Bd1) 33... Rxf4 {[%emt 0:00:23]} 34. Qe3 {[%emt 0:00:03]} Rgf8 {[%emt 0:00:57]} (34... Rxf2+ $142 35. Qxf2 Nxf2 36. Rxf2 Qe3 (36... dxc4 $2 37. Ra1 $19) 37. c5+ Kxc5 (37... Qxc5 $2 38. Bf1 $19) 38. Rb5+ Kd6 39. Bc4 dxc4 40. Rbb2 c3 41. Rbe2 Qd3 (41... Qxb6 $2 42. Re1 $19) (41... Qh3+ {gets mated.} 42. Kg1 Qd3 43. Re1 c2 44. Kg2 Rc8 45. Rfe2 Qd5+ 46. Re4 c1=Q 47. Kg3 Qd3+ 48. R1e3 Qdxe3+ 49. Rxe3 Qxe3+ 50. Kh2 Rc2+ 51. Kh1 Qe1#) 42. Ra2 Rg5 43. Rf8 Qe4+ (43... Rxh5 $2 44. Rd8+ Kc5 45. Rxd3 $18) 44. Kg1 g3 (44... Rxh5 45. Rh2 c2 46. Rd8+ Ke7 47. Rc8 Qe1+ 48. Kg2 Qe2+ 49. Kg1 Qxh2+ 50. Kf1 Rf5+ 51. Ke1 Qf2#) (44... Qb1+ 45. Rf1 Qxa2 46. Rf2 c2 47. Rf1 Qa3 48. Kg2 Qh3+ 49. Kf2 Qf3+ 50. Kg1 Qg3+ 51. Kh1 Rxh5#) 45. Rf1 Rxh5 (45... Qd4+ 46. Kg2 Qd5+ 47. Kg1 Qxa2 48. Rf8 Rxh5 49. Rd8+ Ke5 50. Rf8) 46. Rf3 Qb1+ (46... Qxf3 47. Rd2+ Ke5 48. Re2+ Kf4 49. Re4+ Qxe4 50. Kf1 Rh1#) (46... Qe1+ 47. Rf1) 47. Rf1 Rh1+ (47... Qxa2 48. Rd1+ Rd5 49. Rxd5+ exd5 50. Kh1 Qh2#) 48. Kg2 Qxf1+ 49. Kxg3 Rh3+ 50. Kg4 Qf5#) 35. Qxc5+ $19 {[%emt 0:00:23]} Kxc5 {[%emt 0:00:17]} ({Much less strong is} 35... Nxc5 36. cxd5 exd5 37. Ra1 $19) 36. cxd5 {[%emt 0:00:14]} Rxf2+ {[%emt 0:02:20]} (36... Nxf2 37. dxe6 Kd6 38. Rfe1 $18) 37. Kg1 {[%emt 0:00:06]} Rxf1+ {[%emt 0:00:05]} (37... exd5 38. Rxf2 Nxf2 (38... Rxf2 $2 39. Rb5+ Kc6 40. Bd3 $19) 39. Rc1+ Kxb6 40. Kg2 $19) 38. Bxf1 {[%emt 0:00:17]} exd5 {[%emt 0:00:25]} 39. Rb5+ {[%emt 0:00:13]} Kc6 {[%emt 0:00:47]} 40. Bg2 {[%emt 0:00:00]} Nc3 {[%emt 0:00:00]} 41. Rb3 {[%emt 0:00:38]} Nxa4 {[%emt 0:02:01]} (41... Ne2+ $142 42. Kh1 Rf5) 42. Rd3 {[%emt 0:00:12]} Nxb6 {[%emt 0:00:18]} 0-1